fUSD/lending_fUSD_20250630
["ID","MTS","AMOUNT","RATE_DAILY","PERIOD"]
[368642039,1751261445479,-221.212646,0.00016697,2]
[368642040,1751261445489,-3881.98,0.00016697,2]
[368642041,1751261445497,-221.212646,0.00016697,2]
[368642042,1751261445508,-221.212646,0.00016697,2]
[368642043,1751261445517,-549.49,0.00016697,2]
[368642044,1751261445526,-151.0,0.00016697,2]
[368642045,1751261445536,-2491.68,0.00016697,2]
[368642046,1751261445548,-151.0,0.00016697,2]
[368642047,1751261445562,-151.0,0.00016697,2]
[368642048,1751261445572,-151.0,0.00016697,2]
[368642049,1751261445582,-151.0,0.00016697,2]
[368642050,1751261445592,-151.0,0.00016697,2]
[368642051,1751261445601,-151.0,0.00016697,2]
[368642052,1751261445611,-151.0,0.00016697,2]
[368642053,1751261445620,-1785.76,0.00016697,2]
[368642054,1751261445630,-1722.29,0.00016697,2]
[368642055,1751261445640,-2974.65,0.00016697,2]
[368642056,1751261445649,-2115.06,0.00016697,2]
[368642058,1751261445659,-1633.84,0.00016697,2]
[368642060,1751261445668,-2837.05,0.00016697,2]
[368642062,1751261445677,-151.0,0.00016697,2]
[368642064,1751261445686,-151.0,0.00016697,2]
[368642066,1751261445697,-151.0,0.00016697,2]
[368642068,1751261445707,-151.0,0.00016697,2]
[368642071,1751261445715,-3369.25,0.00016697,2]
[368642073,1751261445725,-2231.45,0.00016697,2]
[368642074,1751261445734,-1031.31,0.00016697,2]
[368642075,1751261445744,-3857.62,0.00016697,2]
[368642076,1751261445753,-1255.81,0.00016697,2]
[368642077,1751261445763,-1599.59,0.00016697,2]
[368642078,1751261445773,-490.0,0.00016697,2]
[368642079,1751261445783,-660.6,0.00016697,2]
[368642080,1751261445792,-2742.86,0.00016697,2]
[368642081,1751261445802,-151.0,0.00016697,2]
[368642082,1751261445812,-151.0,0.00016697,2]
[368642083,1751261445821,-151.0,0.00016697,2]
[368642085,1751261445830,-151.0,0.00016697,2]
[368642086,1751261445839,-151.0,0.00016697,2]
[368642087,1751261445848,-151.0,0.00016697,2]
[368642088,1751261445858,-3783.08,0.00016697,2]
[368642089,1751261445867,-151.0,0.00016697,2]
[368642090,1751261445877,-151.0,0.00016697,2]
[368642091,1751261445886,-209.964639,0.00016697,2]
[368642092,1751261445895,-2242.8,0.00016697,2]
[368642093,1751261445905,-2061.29,0.00016697,2]
[368642094,1751261445915,-694.25,0.00016697,2]
[368642095,1751261445924,-490.0,0.00016697,2]
[368642096,1751261445934,-151.0,0.00016697,2]
[368642097,1751261445943,-217.741253,0.00016697,2]
[368642098,1751261445953,-152.418814,0.00016697,2]
[368642099,1751261445962,-2387.81,0.00016697,2]
[368642100,1751261445972,-943.97,0.00016697,2]
[368642101,1751261445983,-816.42,0.00016697,2]
[368642102,1751261445992,-2372.252602,0.00016697,2]
[368642103,1751261446002,-2372.252602,0.00016697,2]
[368642104,1751261446012,-2372.252602,0.00016697,2]
[368642105,1751261446022,-2372.252602,0.00016697,2]
[368642106,1751261446031,-2372.252602,0.00016697,2]
[368642107,1751261446041,-2372.252602,0.00016697,2]
[368642108,1751261446052,-3106.31,0.00016697,2]
[368642109,1751261446062,-3014.89,0.00016697,2]
[368642110,1751261446072,-151.0,0.00016697,2]
[368642111,1751261446081,-151.0,0.00016697,2]
[368642112,1751261446091,-2687.92,0.00016697,2]
[368642113,1751261446101,-151.0,0.00016697,2]
[368642114,1751261446110,-2310.43,0.00016697,2]
[368642115,1751261446120,-2103.37,0.00016697,2]
[368642116,1751261446129,-3174.93,0.00016697,2]
[368642117,1751261446139,-3855.77,0.00016697,2]
[368642118,1751261446149,-1048.41,0.00016697,2]
[368642119,1751261446158,-1221.93,0.00016697,2]
[368642120,1751261446167,-1324.13,0.00016697,2]
[368642121,1751261446177,-837.49,0.00016697,2]
[368642122,1751261446187,-1941.32,0.00016697,2]
[368642123,1751261446196,-151.0,0.00016697,2]
[368642124,1751261446205,-234.796869,0.00016697,2]
[368642125,1751261446215,-173.5678,0.00016697,2]
[368642127,1751261446225,-173.5678,0.00016697,2]
[368642128,1751261446234,-173.5678,0.00016697,2]
[368642129,1751261446243,-2351.96,0.00016697,2]
[368642130,1751261446253,-173.5678,0.00016697,2]
[368642131,1751261446262,-490.0,0.00016697,2]
[368642132,1751261446271,-173.5678,0.00016697,2]
[368642133,1751261446280,-173.5678,0.00016697,2]
[368642134,1751261446290,-151.0,0.00016697,2]
[368642135,1751261446299,-151.0,0.00016697,2]
[368642136,1751261446308,-151.0,0.00016697,2]
[368642137,1751261446317,-3601.95,0.00016697,2]
[368642138,1751261446326,-151.0,0.00016697,2]
[368642139,1751261446335,-151.0,0.00016697,2]
[368642140,1751261446344,-151.0,0.00016697,2]
[368642141,1751261446353,-490.0,0.00016697,2]
[368642142,1751261446362,-151.0,0.00016697,2]
[368642143,1751261446372,-233.335586,0.00016697,2]
[368642144,1751261446381,-1149.95,0.00016697,2]
[368642145,1751261446391,-870.92329027,0.00016699,2]
[368642146,1751261446401,-17598.96928157,0.000167,2]
[368642147,1751261446410,-151.0,0.000167,2]
[368642148,1751261446420,-151.0,0.000167,2]
[368642149,1751261446429,-151.0,0.000167,2]
[368642150,1751261446439,-151.0,0.000167,2]
[368642151,1751261446448,-193.270053,0.000167,2]
[368642152,1751261446458,-193.270053,0.000167,2]
[368642153,1751261446471,-398.161999,0.000167,2]
[368642154,1751261446480,-398.161999,0.000167,2]
[368642155,1751261446489,-221.212646,0.000167,2]
[368642156,1751261446499,-221.212646,0.000167,2]
[368642157,1751261446509,-151.0,0.000167,2]
[368642158,1751261446518,-151.0,0.000167,2]
[368642159,1751261446528,-2372.252602,0.000167,2]
[368642160,1751261446538,-2372.252602,0.000167,2]
[368642161,1751261446547,-227.698776,0.000167,2]
[368642162,1751261446556,-173.5678,0.000167,2]
[368642163,1751261446566,-173.5678,0.000167,2]
[368642164,1751261446577,-151.0,0.000167,2]
[368642165,1751261446586,-172.92278,0.000167,2]
[368642166,1751261446595,-366.01450192,0.00016721,2]
[368642167,1751261446604,-371.69001478,0.0001674,2]
[368642168,1751261446614,-1000.0,0.00016744,3]
[368642169,1751261446623,-151.0,0.00016755,2]
[368642170,1751261446633,-155.573087,0.00016755,2]
[368642171,1751261446642,-151.0,0.00016755,2]
[368642172,1751261446652,-284.579084,0.00016755,2]
[368642173,1751261446662,-151.0,0.00016755,2]
[368642174,1751261446671,-151.0,0.00016755,2]
[368642175,1751261446681,-175.423164,0.00016755,2]
[368642176,1751261446690,-175.423164,0.00016755,2]
[368642177,1751261446700,-366.01450192,0.00016763,2]
[368642178,1751261446709,-510.65220905,0.00016773,2]
[368642179,1751261446719,-501.54398272,0.00016773,2]
[368642180,1751261446728,-500.91070992,0.00016773,2]
[368642181,1751261446738,-502.71052846,0.00016773,2]
[368642182,1751261446747,-508.74386066,0.00016773,2]
[368642183,1751261446758,-510.12292196,0.00016773,2]
[368642184,1751261446768,-500.0,0.00016773,2]
[368642185,1751261446778,-151.0,0.00016773,2]
[368642186,1751261446788,-180.13367034,0.00016775,2]
[368642187,1751261446798,-306.57167144,0.00016784,2]
[368642188,1751261446807,-684.83,0.00016784,2]
[368642189,1751261446817,-497.72,0.00016785,2]
[368642190,1751261446827,-490.0,0.00016785,2]
[368642191,1751261446838,-554.45,0.00016785,2]
[368642192,1751261446847,-490.0,0.00016785,2]
[368642193,1751261446856,-490.0,0.00016785,2]
[368642194,1751261446866,-490.0,0.00016785,2]
[368642195,1751261446875,-472.75132748,0.00016785,2]
[368642196,1751261446884,-938.55,0.00016785,2]
[368642197,1751261446894,-490.0,0.00016785,2]
[368642198,1751261446904,-490.0,0.00016785,2]
[368642199,1751261446915,-490.0,0.00016785,2]
[368642200,1751261446924,-490.0,0.00016785,2]
[368642201,1751261446934,-968.6,0.00016785,2]
[368642202,1751261446943,-490.0,0.00016785,2]
[368642203,1751261446952,-490.0,0.00016785,2]
[368642204,1751261446962,-497.96,0.00016785,2]
[368642205,1751261446972,-490.0,0.00016785,2]
[368642206,1751261447230,-490.0,0.00016785,2]
[368642207,1751261447241,-490.0,0.00016785,2]
[368642208,1751261447250,-490.0,0.00016785,2]
[368642209,1751261447259,-490.0,0.00016785,2]
[368642210,1751261447269,-490.0,0.00016785,2]
[368642211,1751261447278,-490.0,0.00016785,2]
[368642212,1751261447290,-500.0,0.00016785,2]
[368642213,1751261447300,-490.0,0.00016785,2]
[368642214,1751261447309,-828.03,0.00016785,2]
[368642215,1751261447319,-490.0,0.00016785,2]
[368642216,1751261447328,-490.0,0.00016785,2]
[368642217,1751261447338,-615.7,0.00016785,2]
[368642218,1751261447347,-490.0,0.00016785,2]
[368642219,1751261447357,-490.0,0.00016785,2]
[368642220,1751261447367,-490.0,0.00016785,2]
[368642221,1751261447377,-1232.84,0.00016785,2]
[368642222,1751261447387,-490.0,0.00016785,2]
[368642223,1751261447397,-829.77,0.00016785,2]
[368642224,1751261447406,-490.0,0.00016785,2]
[368642225,1751261447415,-1109.43,0.00016785,2]
[368642226,1751261447424,-490.0,0.00016785,2]
[368642227,1751261447433,-763.46,0.00016785,2]
[368642228,1751261447443,-490.0,0.00016785,2]
[368642229,1751261447452,-490.0,0.00016785,2]
[368642230,1751261447463,-490.0,0.00016785,2]
[368642231,1751261447472,-572.38,0.00016785,2]
[368642232,1751261447481,-490.0,0.00016785,2]
[368642233,1751261447491,-759.65,0.00016785,2]
[368642234,1751261447501,-641.48,0.00016785,2]
[368642235,1751261447510,-490.0,0.00016785,2]
[368642236,1751261447520,-490.0,0.00016785,2]
[368642237,1751261447529,-490.0,0.00016785,2]
[368642238,1751261447542,-712.69,0.00016785,2]
[368642239,1751261447551,-490.0,0.00016785,2]
[368642240,1751261447560,-490.38441876,0.00016785,2]
[368642241,1751261447569,-490.0,0.00016785,2]
[368642242,1751261447579,-490.0,0.00016785,2]
[368642243,1751261447588,-1041.88,0.00016785,2]
[368642244,1751261447598,-490.0,0.00016785,2]
[368642245,1751261447607,-212.3642102,0.00016785,2]
[368642246,1751261447617,-490.0,0.00016785,2]
[368642247,1751261447629,-635.02,0.00016785,2]
[368642248,1751261447639,-490.0,0.00016785,2]
[368642249,1751261447650,-490.0,0.00016785,2]
[368642250,1751261447660,-490.0,0.00016785,2]
[368642251,1751261447670,-832.42,0.00016785,2]
[368642252,1751261447680,-490.0,0.00016785,2]
[368642253,1751261447691,-490.0,0.00016785,2]
[368642254,1751261447701,-553.82,0.00016785,2]
[368642255,1751261447711,-490.0,0.00016785,2]
[368642256,1751261447721,-490.0,0.00016785,2]
[368642257,1751261447731,-1556.92,0.00016785,2]
[368642258,1751261447742,-490.0,0.00016785,2]
[368642259,1751261447753,-151.0,0.00016785,2]
[368642260,1751261447763,-494.88,0.00016785,2]
[368642261,1751261447772,-490.0,0.00016785,2]
[368642262,1751261447793,-490.0,0.00016785,2]
[368642263,1751261447804,-490.0,0.00016785,2]
[368642264,1751261447814,-704.92,0.00016785,2]
[368642265,1751261447825,-490.0,0.00016785,2]
[368642266,1751261447835,-490.0,0.00016785,2]
[368642267,1751261447845,-386.18223033,0.00016785,2]
[368642268,1751261447855,-490.0,0.00016785,2]
[368642269,1751261447866,-490.0,0.00016785,2]
[368642270,1751261447876,-490.0,0.00016785,2]
[368642271,1751261447886,-512.1,0.00016785,2]
[368642272,1751261447896,-541.2,0.00016785,2]
[368642273,1751261447906,-490.0,0.00016785,2]
[368642274,1751261447916,-490.0,0.00016785,2]
[368642275,1751261447927,-490.0,0.00016785,2]
[368642276,1751261447936,-490.0,0.00016785,2]
[368642277,1751261447947,-490.0,0.00016785,2]
[368642278,1751261447957,-490.0,0.00016785,2]
[368642279,1751261447967,-490.0,0.00016785,2]
[368642280,1751261447977,-594.15589102,0.00016785,2]
[368642281,1751261447987,-490.0,0.00016785,2]
[368642282,1751261447997,-490.0,0.00016785,2]
[368642283,1751261448007,-490.0,0.00016785,2]
[368642284,1751261448016,-490.0,0.00016785,2]
[368642285,1751261448026,-490.0,0.00016785,2]
[368642286,1751261448037,-840.62,0.00016785,2]
[368642287,1751261448047,-490.0,0.00016785,2]
[368642288,1751261448057,-962.55,0.00016785,2]
[368642289,1751261448067,-490.0,0.00016785,2]
[368642290,1751261448078,-837.23,0.00016785,2]
[368642291,1751261448088,-490.0,0.00016785,2]
[368642292,1751261448098,-490.0,0.00016785,2]
[368642293,1751261448108,-490.0,0.00016785,2]
[368642294,1751261448118,-490.0,0.00016785,2]
[368642295,1751261448128,-925.49,0.00016785,2]
[368642296,1751261448138,-490.0,0.00016785,2]
[368642297,1751261448148,-490.0,0.00016785,2]
[368642298,1751261448159,-490.0,0.00016785,2]
[368642299,1751261448168,-490.0,0.00016785,2]
[368642300,1751261448178,-490.0,0.00016785,2]
[368642301,1751261448189,-490.0,0.00016785,2]
[368642302,1751261448198,-490.0,0.00016785,2]
[368642303,1751261448209,-490.0,0.00016785,2]
[368642304,1751261448219,-490.0,0.00016785,2]
[368642305,1751261448229,-623.55,0.00016785,2]
[368642306,1751261448239,-490.0,0.00016785,2]
[368642307,1751261448250,-490.0,0.00016785,2]
[368642308,1751261448259,-490.0,0.00016785,2]
[368642309,1751261448270,-568.05,0.00016785,2]
[368642310,1751261448280,-973.33,0.00016785,2]
[368642311,1751261448291,-490.0,0.00016785,2]
[368642312,1751261448302,-627.01,0.00016785,2]
[368642313,1751261448313,-739.53,0.00016785,2]
[368642314,1751261448323,-490.0,0.00016785,2]
[368642315,1751261448333,-481.97820152,0.00016785,2]
[368642316,1751261448343,-697.49,0.00016785,2]
[368642317,1751261448353,-490.72804305,0.00016785,2]
[368642318,1751261448363,-490.0,0.00016785,2]
[368642319,1751261448373,-490.0,0.00016785,2]
[368642320,1751261448382,-490.0,0.00016785,2]
[368642321,1751261448392,-1821.51,0.00016785,2]
[368642322,1751261448403,-490.0,0.00016785,2]
[368642323,1751261448413,-791.92,0.00016785,2]
[368642324,1751261448423,-490.0,0.00016785,2]
[368642325,1751261448433,-490.0,0.00016785,2]
[368642326,1751261448443,-151.0,0.00016785,2]
[368642327,1751261448453,-151.0,0.00016785,2]
[368642328,1751261448463,-151.0,0.00016785,2]
[368642329,1751261448476,-151.0,0.00016785,2]
[368642330,1751261448486,-151.0,0.00016785,2]
[368642331,1751261448496,-490.0,0.00016785,2]
[368642332,1751261448507,-712.09,0.00016785,2]
[368642333,1751261448517,-1478.69,0.00016785,2]
[368642334,1751261448527,-430.95833574,0.00016785,2]
[368642335,1751261448537,-520.99,0.00016785,2]
[368642336,1751261448549,-523.07135258,0.00016785,2]
[368642337,1751261448559,-490.0,0.00016785,2]
[368642338,1751261448569,-691.35,0.00016785,2]
[368642339,1751261448579,-490.0,0.00016785,2]
[368642340,1751261448589,-813.21,0.00016785,2]
[368642341,1751261448599,-490.0,0.00016785,2]
[368642342,1751261448609,-1135.95,0.00016785,2]
[368642343,1751261448619,-490.0,0.00016785,2]
[368642344,1751261448629,-653.83,0.00016785,2]
[368642345,1751261448639,-1591.54,0.00016785,2]
[368642346,1751261448648,-790.43,0.00016785,2]
[368642347,1751261448658,-713.04,0.00016785,2]
[368642348,1751261448667,-575.38,0.00016785,2]
[368642349,1751261448677,-1434.74,0.00016785,2]
[368642350,1751261448686,-151.0,0.00016785,2]
[368642351,1751261448696,-151.0,0.00016785,2]
[368642352,1751261448706,-1114.57,0.00016785,2]
[368642353,1751261448715,-490.0,0.00016785,2]
[368642354,1751261448725,-234.755644,0.00016785,2]
[368642355,1751261448735,-608.48,0.00016785,2]
[368642356,1751261448744,-496.08706876,0.00016785,2]
[368642357,1751261448754,-490.0,0.00016785,2]
[368642358,1751261448763,-514.04237829,0.00016785,2]
[368642359,1751261448773,-531.41,0.00016785,2]
[368642360,1751261448783,-1083.63,0.00016785,2]
[368642361,1751261448792,-516.65,0.00016785,2]
[368642362,1751261448803,-175.423164,0.00016785,2]
[368642363,1751261448812,-175.423164,0.00016785,2]
[368642364,1751261448822,-490.0,0.00016785,2]
[368642365,1751261448832,-490.0,0.00016785,2]
[368642366,1751261448842,-490.0,0.00016785,2]
[368642367,1751261448852,-175.423164,0.00016785,2]
[368642368,1751261448862,-175.423164,0.00016785,2]
[368642369,1751261448871,-151.0,0.00016785,2]
[368642370,1751261448881,-151.0,0.00016785,2]
[368642371,1751261448891,-151.0,0.00016785,2]
[368642372,1751261448901,-151.0,0.00016785,2]
[368642373,1751261448911,-490.0,0.00016785,2]
[368642374,1751261448921,-188.710298,0.00016785,2]
[368642375,1751261448931,-490.0,0.00016785,2]
[368642376,1751261448941,-500.0,0.00016785,2]
[368642377,1751261448951,-992.96,0.00016785,2]
[368642378,1751261448960,-490.0,0.00016785,2]
[368642379,1751261448971,-490.0,0.00016785,2]
[368642380,1751261448980,-490.0,0.00016785,2]
[368642381,1751261448990,-490.0,0.00016785,2]
[368642382,1751261449000,-490.0,0.00016785,2]
[368642383,1751261449010,-490.0,0.00016785,2]
[368642384,1751261449019,-490.0,0.00016785,2]
[368642385,1751261449029,-490.0,0.00016785,2]
[368642386,1751261449039,-490.0,0.00016785,2]
[368642387,1751261449049,-151.0,0.00016785,2]
[368642388,1751261449058,-151.0,0.00016785,2]
[368642389,1751261449068,-490.0,0.00016785,2]
[368642390,1751261449079,-216.409555,0.00016785,2]
[368642391,1751261449089,-621.88,0.00016785,2]
[368642392,1751261449099,-834.85,0.00016785,2]
[368642393,1751261449108,-947.21,0.00016785,2]
[368642394,1751261449118,-490.0,0.00016785,2]
[368642395,1751261449128,-151.0,0.00016785,2]
[368642396,1751261449138,-151.0,0.00016785,2]
[368642397,1751261449148,-171.108904,0.00016785,2]
[368642398,1751261449158,-490.0,0.00016785,2]
[368642399,1751261449168,-490.0,0.00016785,2]
[368642400,1751261449178,-668.3,0.00016785,2]
[368642401,1751261449188,-490.0,0.00016785,2]
[368642402,1751261449198,-636.23,0.00016785,2]
[368642403,1751261449207,-490.0,0.00016785,2]
[368642404,1751261449216,-193.270053,0.00016785,2]
[368642405,1751261449226,-193.270053,0.00016785,2]
[368642406,1751261449236,-193.270053,0.00016785,2]
[368642407,1751261449246,-193.270053,0.00016785,2]
[368642408,1751261449255,-490.0,0.00016785,2]
[368642409,1751261449265,-591.05,0.00016785,2]
[368642410,1751261449276,-193.270053,0.00016785,2]
[368642411,1751261449285,-193.270053,0.00016785,2]
[368642412,1751261449295,-193.270053,0.00016785,2]
[368642413,1751261449305,-193.270053,0.00016785,2]
[368642414,1751261449314,-490.0,0.00016785,2]
[368642415,1751261449323,-679.59,0.00016785,2]
[368642416,1751261449332,-500.0,0.00016785,2]
[368642417,1751261449342,-490.0,0.00016785,2]
[368642418,1751261449351,-490.0,0.00016785,2]
[368642419,1751261449360,-550.91,0.00016785,2]
[368642420,1751261449369,-711.34,0.00016785,2]
[368642421,1751261449379,-490.0,0.00016785,2]
[368642422,1751261449388,-398.161999,0.00016785,2]
[368642423,1751261449397,-398.161999,0.00016785,2]
[368642424,1751261449407,-398.161999,0.00016785,2]
[368642425,1751261449416,-398.161999,0.00016785,2]
[368642426,1751261449426,-155.48042,0.00016785,2]
[368642427,1751261449436,-6064.38,0.00016785,2]
[368642428,1751261449446,-1242.85,0.00016785,2]
[368642429,1751261449455,-398.161999,0.00016785,2]
[368642430,1751261449465,-398.161999,0.00016785,2]
[368642431,1751261449478,-398.161999,0.00016785,2]
[368642432,1751261449489,-398.161999,0.00016785,2]
[368642433,1751261449498,-490.0,0.00016785,2]
[368642434,1751261449508,-490.0,0.00016785,2]
[368642435,1751261449518,-490.0,0.00016785,2]
[368642436,1751261449528,-2281.25,0.00016785,2]
[368642437,1751261449538,-809.1,0.00016785,2]
[368642438,1751261449547,-490.0,0.00016785,2]
[368642439,1751261449557,-490.0,0.00016785,2]
[368642440,1751261449567,-151.0,0.00016785,2]
[368642441,1751261449576,-151.0,0.00016785,2]
[368642442,1751261449586,-4277.01,0.00016785,2]
[368642443,1751261449595,-151.0,0.00016785,2]
[368642444,1751261449604,-275.224466,0.00016785,2]
[368642445,1751261449614,-490.0,0.00016785,2]
[368642446,1751261449623,-490.0,0.00016785,2]
[368642447,1751261449633,-490.0,0.00016785,2]
[368642448,1751261449769,-490.0,0.00016785,2]
[368642449,1751261449779,-151.0,0.00016785,2]
[368642450,1751261449788,-221.212646,0.00016785,2]
[368642451,1751261449798,-169.520028,0.00016785,2]
[368642452,1751261449807,-221.212646,0.00016785,2]
[368642453,1751261449816,-221.212646,0.00016785,2]
[368642454,1751261449825,-221.212646,0.00016785,2]
[368642455,1751261449834,-490.0,0.00016785,2]
[368642456,1751261449843,-3159.17,0.00016785,2]
[368642457,1751261449852,-221.212646,0.00016785,2]
[368642458,1751261449862,-221.212646,0.00016785,2]
[368642459,1751261449871,-221.212646,0.00016785,2]
[368642460,1751261449881,-221.212646,0.00016785,2]
[368642461,1751261449890,-490.0,0.00016785,2]
[368642462,1751261449899,-151.0,0.00016785,2]
[368642463,1751261449909,-151.0,0.00016785,2]
[368642464,1751261449918,-151.0,0.00016785,2]
[368642465,1751261449927,-151.0,0.00016785,2]
[368642466,1751261449936,-151.0,0.00016785,2]
[368642467,1751261449946,-151.0,0.00016785,2]
[368642468,1751261449955,-1693.51,0.00016785,2]
[368642469,1751261449964,-151.0,0.00016785,2]
[368642470,1751261449974,-151.0,0.00016785,2]
[368642471,1751261449984,-490.0,0.00016785,2]
[368642472,1751261449994,-267.593959,0.00016785,2]
[368642473,1751261450003,-490.0,0.00016785,2]
[368642474,1751261450013,-490.0,0.00016785,2]
[368642475,1751261450022,-490.0,0.00016785,2]
[368642476,1751261450031,-490.0,0.00016785,2]
[368642477,1751261450041,-490.0,0.00016785,2]
[368642478,1751261450051,-1877.79,0.00016785,2]
[368642479,1751261450060,-539.86,0.00016785,2]
[368642480,1751261450069,-1383.39,0.00016785,2]
[368642481,1751261450080,-1486.21,0.00016785,2]
[368642482,1751261450089,-151.0,0.00016785,2]
[368642483,1751261450099,-151.0,0.00016785,2]
[368642484,1751261450108,-151.0,0.00016785,2]
[368642485,1751261450118,-229.507078,0.00016785,2]
[368642486,1751261450127,-388.21621563,0.00016785,2]
[368642487,1751261450136,-1249.02,0.00016785,2]
[368642488,1751261450146,-3697.64,0.00016785,2]
[368642489,1751261450156,-500.0,0.00016785,2]
[368642490,1751261450165,-490.0,0.00016785,2]
[368642491,1751261450174,-490.0,0.00016785,2]
[368642492,1751261450183,-490.0,0.00016785,2]
[368642493,1751261450193,-2742.8,0.00016785,2]
[368642494,1751261450203,-1434.96,0.00016785,2]
[368642495,1751261450212,-492.06023797,0.00016785,2]
[368642496,1751261450222,-490.0,0.00016785,2]
[368642497,1751261450233,-688.79,0.00016785,2]
[368642498,1751261450243,-4879.16,0.00016785,2]
[368642499,1751261450253,-490.0,0.00016785,2]
[368642500,1751261450262,-5308.24,0.00016785,2]
[368642501,1751261450272,-866.84,0.00016785,2]
[368642502,1751261450283,-490.0,0.00016785,2]
[368642503,1751261450293,-1060.33,0.00016785,2]
[368642504,1751261450302,-151.0,0.00016785,2]
[368642505,1751261450311,-151.0,0.00016785,2]
[368642506,1751261450321,-2960.74,0.00016785,2]
[368642507,1751261450331,-1894.93,0.00016785,2]
[368642508,1751261450341,-253.397901,0.00016785,2]
[368642509,1751261450350,-490.0,0.00016785,2]
[368642510,1751261450359,-3693.04,0.00016785,2]
[368642511,1751261450368,-490.0,0.00016785,2]
[368642512,1751261450378,-2489.37,0.00016785,2]
[368642513,1751261450387,-490.0,0.00016785,2]
[368642514,1751261450396,-1249.16,0.00016785,2]
[368642515,1751261450406,-2526.54,0.00016785,2]
[368642516,1751261450415,-645.5,0.00016785,2]
[368642517,1751261450424,-490.0,0.00016785,2]
[368642518,1751261450434,-490.0,0.00016785,2]
[368642519,1751261450444,-490.0,0.00016785,2]
[368642520,1751261450453,-3152.87,0.00016785,2]
[368642521,1751261450463,-610.43,0.00016785,2]
[368642522,1751261450474,-904.4,0.00016785,2]
[368642523,1751261450483,-490.0,0.00016785,2]
[368642524,1751261450492,-2753.28,0.00016785,2]
[368642525,1751261450502,-490.0,0.00016785,2]
[368642526,1751261450511,-3596.06,0.00016785,2]
[368642527,1751261450521,-490.0,0.00016785,2]
[368642528,1751261450531,-36617.2,0.00016785,2]
[368642529,1751261450540,-490.0,0.00016785,2]
[368642530,1751261450552,-2372.252602,0.00016785,2]
[368642531,1751261450562,-2545.62,0.00016785,2]
[368642532,1751261450572,-2372.252602,0.00016785,2]
[368642533,1751261450581,-2372.252602,0.00016785,2]
[368642534,1751261450590,-2372.252602,0.00016785,2]
[368642535,1751261450599,-1235.51,0.00016785,2]
[368642536,1751261450609,-500.0,0.00016785,2]
[368642537,1751261450619,-2372.252602,0.00016785,2]
[368642538,1751261450629,-2372.252602,0.00016785,2]
[368642539,1751261450638,-2372.252602,0.00016785,2]
[368642540,1751261450647,-2372.252602,0.00016785,2]
[368642541,1751261450656,-490.0,0.00016785,2]
[368642542,1751261450666,-490.0,0.00016785,2]
[368642543,1751261450675,-490.0,0.00016785,2]
[368642544,1751261450685,-492.42618005,0.00016785,2]
[368642545,1751261450694,-490.0,0.00016785,2]
[368642546,1751261450703,-751.66,0.00016785,2]
[368642547,1751261450712,-5917.02,0.00016785,2]
[368642548,1751261450721,-569.50671587,0.00016785,2]
[368642549,1751261450730,-369.87440778,0.00016785,2]